bitfinex/quotes_ETHUSD_20240811
["timestamp","ask_amount","ask_price","bid_price","bid_amount"]
[1723417070534,2.3331,2573.0,2572.6,0.55]
[1723417070882,2.72048,2573.1,2572.6,3.27096]
[1723417071080,2.72048,2573.1,2572.6,4.182256]
[1723417071554,2.72058,2573.0,2572.6,0.55]
[1723417072177,22.57652703,2573.0,2572.6,0.55]
[1723417072386,25.29714703,2573.0,2572.6,0.55]
[1723417072836,22.57652703,2573.0,2572.6,0.55]
[1723417073267,2.72068,2572.9,2572.6,0.55]
[1723417073434,22.57652703,2573.0,2572.6,0.55]
[1723417073640,25.29714703,2573.0,2572.6,0.55]
[1723417073875,2.72074,2572.9,2572.6,0.55]
[1723417074378,2.72074,2572.9,2572.1,2.842]
[1723417074379,2.72104,2572.6,2572.1,2.842]
[1723417074587,2.72104,2572.6,2572.0,5.08353]
[1723417074588,2.72109,2572.5,2572.0,2.362]
[1723417074789,2.72135,2572.3,2571.7,5.08392]
[1723417074945,19.85594703,2572.4,2571.7,2.362]
[1723417075146,19.85594703,2572.4,2572.1,2.842]
[1723417075374,19.85594703,2572.4,2572.2,2.72131]
[1723417075683,19.85594703,2572.4,2571.9,2.362]
[1723417075980,19.85594703,2572.4,2572.0,0.5204]
[1723417076183,19.85594703,2572.4,2572.0,6.242]
[1723417076349,19.85594703,2572.4,2572.0,3.0]
[1723417076549,19.85594703,2572.4,2572.1,0.55]
[1723417076974,22.57716703,2572.4,2572.1,0.55]
[1723417077187,19.85594703,2572.4,2572.1,0.55]
[1723417077761,19.85594703,2572.4,2572.1,3.2715]
[1723417077967,19.85594703,2572.6,2572.2,0.63492563]
[1723417078276,19.85594703,2572.6,2572.3,0.55]
[1723417078848,19.85594703,2572.6,2572.3,3.27122]
[1723417079049,19.85594703,2572.6,2572.4,5.13586]
[1723417079290,19.85594703,2572.6,2572.5,1.390708]
[1723417079558,27.12594703,2572.9,2572.5,4.111788]
[1723417079967,27.12594703,2572.9,2572.5,4.111728]
[1723417080296,27.12594703,2572.9,2572.5,1.390708]
[1723417080458,29.84666703,2572.9,2572.5,0.55]
[1723417081172,29.46104703,2572.9,2572.5,0.55]
[1723417081485,2.72095,2572.7,2572.2,3.0]
[1723417081687,2.72095,2572.7,2572.3,0.55]
[1723417082054,2.7211,2572.5,2572.3,0.55]
[1723417082256,2.7211,2572.5,2572.2,3.0]
[1723417082470,2.7211,2572.5,2572.0,5.72161]
[1723417082789,32.18172703,2572.9,2572.5,2.72103]
[1723417082790,27.12594703,2572.9,2572.5,2.72103]
[1723417083086,29.84660703,2572.9,2572.3,2.7212]
[1723417083587,29.84660703,2572.9,2572.2,2.49244215]
[1723417083588,2.3351,2572.8,2572.4,0.55]
[1723417083795,27.12594703,2572.9,2572.5,2.72106]
[1723417083957,19.85594703,2573.0,2572.6,0.55]
[1723417084290,19.85594703,2572.9,2572.6,0.55]
[1723417084659,22.57663703,2572.9,2572.6,0.55]
[1723417084872,22.57663703,2572.9,2572.5,0.55]
[1723417086788,22.57663703,2572.9,2572.5,3.27108]
[1723417086789,19.85594703,2572.9,2572.5,3.27108]
[1723417087497,19.85594703,2572.9,2572.5,3.27102]
[1723417087656,7.27,2573.2,2572.6,2.41704293]
[1723417087858,7.27,2573.2,2572.7,0.55]
[1723417088174,7.27,2573.2,2572.8,2.72071]
[1723417088409,7.27,2573.2,2572.9,0.55]
[1723417088861,9.9904,2573.2,2572.8,0.55]
[1723417089384,9.9904,2573.2,2572.7,0.55]
[1723417089595,12.71081,2573.2,2572.7,0.55]
[1723417089753,9.9904,2573.2,2572.7,3.27086]
[1723417090385,7.27,2573.2,2572.8,2.72075]
[1723417090588,7.27,2573.2,2572.9,0.55]
[1723417091101,9.99035,2573.2,2572.9,0.55]
[1723417091272,9.99035,2573.2,2572.8,0.55]
[1723417092889,2.72035,2573.2,2572.8,0.55]
[1723417093373,19.85594703,2573.3,2572.9,2.72065]
[1723417093567,19.85594703,2573.3,2573.0,0.55]
[1723417094699,19.85594703,2573.3,2573.0,5.6131]
[1723417095004,19.85594703,2573.3,2573.0,6.45424826]
[1723417095396,19.85594703,2573.3,2573.0,2.8926]
[1723417096270,2.72041,2573.2,2573.0,0.55]
[1723417096473,2.72041,2573.2,2572.4,0.29647]
[1723417096474,2.72055,2573.0,2572.6,2.3426]
[1723417096679,2.72055,2573.0,2572.6,5.06358]
[1723417096898,2.72041,2573.2,2572.6,5.06358]
[1723417097277,2.72041,2573.2,2572.6,7.78444]
[1723417097486,2.72041,2573.2,2572.7,0.778444]
[1723417097889,2.72041,2573.2,2572.8,0.55]
[1723417098306,2.7204,2573.2,2572.8,0.55]
[1723417098797,25.29675703,2573.2,2572.8,0.55]
[1723417099301,25.29675703,2573.2,2572.7,0.55]
[1723417099302,22.57634703,2573.2,2572.7,0.55]
[1723417099473,22.57634703,2573.2,2572.7,3.27079]
[1723417099710,22.57634703,2573.2,2572.9,2.72062]
[1723417099711,19.85594703,2573.2,2572.9,2.72062]
[1723417100027,19.85594703,2573.2,2573.0,0.55]
[1723417100204,27.12594703,2573.5,2573.1,2.3545]
[1723417100406,27.12594703,2573.5,2573.2,0.55]
[1723417100727,14.99976,2573.8,2573.2,3.27026]
[1723417100728,19.85594703,2573.6,2573.2,3.27026]
[1723417101035,19.85594703,2573.6,2573.2,0.55]
[1723417101197,19.85594703,2573.6,2573.3,2.72022]
[1723417101525,19.85594703,2573.6,2573.4,0.55]
[1723417101898,19.85594703,2573.6,2573.3,0.55]
[1723417102098,22.57588703,2573.6,2573.3,0.55]
[1723417102413,22.57588703,2573.6,2573.2,0.55]
[1723417102724,25.96011373,2573.6,2573.2,0.55]
[1723417102941,25.96011373,2573.6,2573.1,0.55]
[1723417103102,25.96011373,2573.6,2573.0,0.55]
[1723417103304,2.72019,2573.4,2573.0,0.55]
[1723417104089,27.64247703,2573.6,2573.0,3.27055]
[1723417104401,2.72019,2573.4,2573.0,0.55]
[1723417104728,2.7204,2573.2,2573.0,0.55]
[1723417104928,2.7204,2573.2,2572.8,2.4243]
[1723417105089,2.7204,2573.2,2572.8,5.4243]
[1723417105284,19.85594703,2573.3,2572.8,9.243721]
[1723417106190,19.85594703,2573.3,2572.9,3.2706]
[1723417107513,19.85594703,2573.3,2573.0,2.72052]
[1723417107828,19.85594703,2573.3,2573.1,0.55]
[1723417109189,19.85594703,2573.3,2572.9,0.55]
[1723417109606,22.57618703,2573.3,2572.9,0.55]
[1723417110201,19.85594703,2573.3,2572.9,3.27065]
[1723417110533,19.85594703,2573.3,2573.1,2.72043]
[1723417110739,2.71988,2573.7,2573.2,0.55]
[1723417110740,19.85594703,2573.5,2573.2,0.55]
[1723417111032,19.85594703,2573.5,2573.2,2.8634]
[1723417111932,19.85594703,2573.5,2573.4,1.189]
[1723417112228,27.55358973,2573.5,2573.4,1.189]
[1723417112433,19.85594703,2573.5,2573.4,1.189]
[1723417112631,19.85594703,2573.5,2573.4,1.739]
[1723417112934,19.85594703,2573.5,2573.4,4.45913]
[1723417113103,2.71944,2574.1,2573.5,2.71996]
[1723417113304,2.71944,2574.1,2573.8,1.189]
[1723417113305,22.57538703,2574.1,2573.8,1.189]
[1723417113631,2.71952,2574.0,2573.8,1.189]
[1723417113832,2.71995,2573.6,2573.4,0.55]
[1723417113996,2.71995,2573.6,2573.2,3.55]
[1723417114204,2.72006,2573.5,2573.2,3.55]
[1723417114403,2.71995,2573.6,2573.2,0.55]
[1723417114914,2.7201,2573.5,2573.2,0.55]
[1723417115235,2.72015,2573.4,2573.2,0.55]
[1723417115736,2.72015,2573.4,2572.9,5.1117]
[1723417115737,2.72034,2573.2,2573.1,0.55]
[1723417115911,2.72015,2573.4,2573.0,0.55]
[1723417116231,2.72015,2573.4,2573.0,0.77587]
[1723417116614,2.71999,2573.6,2573.0,3.49639]
[1723417116821,2.72006,2573.5,2573.0,3.49639]
[1723417116996,2.71999,2573.6,2573.0,3.49637]
[1723417117199,5.43999,2573.6,2573.0,3.49637]
[1723417117843,2.72015,2573.4,2573.0,0.77587]
[1723417118146,2.72015,2573.4,2573.0,0.55]
[1723417119643,2.72005,2573.5,2573.0,3.27055]
[1723417120614,22.57593703,2573.6,2573.0,3.27049]
[1723417120815,22.57593703,2573.6,2573.1,2.72045]
[1723417121019,22.57593703,2573.6,2573.2,0.55]
[1723417121433,19.85594703,2573.6,2573.2,3.869424]
[1723417121619,19.85594703,2573.6,2573.3,2.2573]
[1723417121939,19.85594703,2573.6,2573.4,0.55]
[1723417123052,2.72003,2573.5,2573.4,0.55]
[1723417123235,5.2496157,2573.5,2573.0,2.2573]
[1723417123407,2.72003,2573.5,2573.0,5.2573]
[1723417123608,2.72003,2573.5,2573.1,0.55]
[1723417124651,2.72004,2573.5,2573.1,0.55]
[1723417124852,2.72015,2573.4,2573.1,0.55]
[1723417125206,22.57587703,2573.6,2573.1,1.41603]
[1723417125435,22.57587703,2573.6,2573.1,4.1364]
[1723417125640,2.71993,2573.6,2573.1,4.1364]
[1723417125980,12.70956,2573.8,2573.2,2.72032]
[1723417126146,12.70956,2573.8,2573.3,0.963635]
[1723417126444,2.71982,2573.7,2573.3,0.963635]
[1723417126833,2.71998,2573.6,2573.3,0.963635]
[1723417127029,2.71998,2573.6,2573.3,0.55]
[1723417127232,2.71998,2573.6,2573.2,0.55]
[1723417127433,2.72014,2573.4,2573.2,0.55]
[1723417127738,2.72014,2573.4,2573.1,0.55]
[1723417128647,2.72025,2573.3,2573.1,0.55]
[1723417129250,2.72034,2573.2,2573.1,0.55]
[1723417129759,2.72061,2573.0,2572.6,5.1103]
[1723417130467,2.72066,2572.9,2572.6,2.853]
[1723417130646,2.72066,2572.9,2572.4,2.26925484]
[1723417131154,2.72089,2572.7,2572.4,0.01195484]
[1723417131321,2.72066,2572.9,2572.4,0.01195484]
[1723417132459,2.72066,2572.9,2572.4,0.56195484]
[1723417133259,2.72088,2572.7,2572.4,0.01195484]
[1723417133925,5.44182,2572.7,2572.6,1.189]
[1723417134122,5.44181,2572.7,2572.6,1.189]
[1723417134455,26.07435803,2572.7,2572.6,1.189]
[1723417134660,25.29775703,2572.7,2572.6,1.189]
[1723417137373,19.85594703,2572.7,2572.6,1.739]
[1723417138963,22.57681703,2572.7,2572.6,1.189]
[1723417139488,25.29768703,2572.7,2572.6,1.189]
[1723417139698,30.16795573,2572.7,2572.6,1.189]
[1723417139987,22.57681703,2572.7,2572.6,1.189]
[1723417140345,2.721,2572.6,2572.4,1.20095484]
[1723417140541,2.721,2572.6,2572.5,0.55]
[1723417140944,2.72108,2572.5,2572.4,1.20095484]
[1723417141202,5.44216,2572.5,2572.4,0.01195484]
[1723417141487,7.89806,2572.5,2572.4,0.01195484]
[1723417141695,2.72098,2572.6,2572.4,0.01195484]
[1723417141861,22.57683703,2572.7,2572.4,0.01195484]
[1723417141862,19.85594703,2572.7,2572.4,0.01195484]
[1723417142275,2.721,2572.6,2572.4,0.01195484]
[1723417142795,2.721,2572.6,2572.4,0.56195484]
[1723417142796,5.44205,2572.6,2572.4,0.56195484]
[1723417143096,5.44208,2572.6,2572.4,0.01195484]
[1723417143385,2.721,2572.6,2572.4,0.01195484]
[1723417143990,19.85594703,2572.7,2572.4,0.01195484]
[1723417144149,19.85594703,2572.7,2572.5,1.189]
[1723417144350,9.99058,2573.0,2572.6,2.4344]
[1723417144583,9.99058,2573.0,2572.7,1.739]
[1723417144584,7.27,2573.0,2572.7,1.739]
[1723417144889,7.27,2573.0,2572.7,2.15634]
[1723417145061,2.72072,2572.9,2572.7,0.55]
[1723417145260,2.72072,2572.9,2572.6,0.55]
[1723417145690,9.99061,2573.0,2572.7,1.189]
[1723417146008,9.99058,2573.0,2572.8,0.55]
[1723417146159,2.72066,2572.9,2572.8,0.55]
[1723417146494,2.72081,2572.8,2572.6,0.55]
[1723417146695,2.72087,2572.7,2572.6,0.55]
[1723417147983,2.72077,2572.8,2572.6,0.55]
[1723417148188,2.72087,2572.7,2572.6,0.55]
[1723417149491,2.72108,2572.5,2572.4,0.01195484]
[1723417149990,5.44216,2572.5,2572.4,0.01195484]
[1723417151495,2.72108,2572.5,2572.4,0.01195484]
[1723417151707,5.44216,2572.5,2572.4,0.01195484]
[1723417151853,2.72108,2572.5,2572.4,0.01195484]
[1723417153692,5.44216,2572.5,2572.4,0.01195484]
[1723417154566,2.72108,2572.5,2572.4,0.01195484]
[1723417155071,5.44216,2572.5,2572.4,0.01195484]
[1723417155391,2.72095,2572.7,2572.4,1.20095484]
[1723417155556,2.72099,2572.6,2572.5,0.55]
[1723417155755,2.72082,2572.8,2572.5,0.55]
[1723417155952,5.13548,2572.6,2572.5,0.55]
[1723417156410,5.13548,2572.6,2572.4,0.01195484]
[1723417156836,2.72108,2572.5,2572.4,0.01195484]
[1723417157197,5.44216,2572.5,2572.4,0.01195484]
[1723417157403,25.29810703,2572.5,2572.4,0.01195484]
[1723417157601,25.95838286,2572.5,2572.4,0.01195484]
[1723417158440,2.7209,2572.7,2572.4,3.62365484]
[1723417158441,2.72096,2572.7,2572.4,3.62365484]
[1723417158634,2.72098,2572.6,2572.5,0.55]
[1723417159420,2.72094,2572.7,2572.5,0.55]
[1723417159626,5.44187,2572.7,2572.5,0.55]
[1723417159826,5.44186,2572.7,2572.5,0.55]
[1723417160230,2.72098,2572.6,2572.5,0.55]
[1723417160430,5.4419,2572.7,2572.5,0.55]
[1723417160936,2.7207,2572.9,2572.5,0.96736548]
[1723417161235,2.7205,2573.1,2572.6,1.189]
[1723417161531,2.72057,2573.0,2572.7,0.55]
[1723417161731,2.7205,2573.1,2572.7,0.55]
[1723417162398,2.72063,2573.0,2572.7,0.55]
[1723417163034,2.7205,2573.1,2572.7,0.55]
[1723417163344,2.72057,2573.0,2572.7,0.55]
[1723417163637,5.44105,2573.1,2572.7,0.55]
[1723417164104,2.72035,2573.2,2572.7,0.55]
[1723417164304,5.16306,2573.4,2572.6,0.55]
[1723417164305,2.72063,2573.0,2572.6,0.55]
[1723417164512,2.72067,2572.9,2572.5,0.55]
[1723417165213,2.72035,2573.2,2572.6,2.4478]
[1723417165416,2.72035,2573.2,2572.7,0.55]
[1723417166103,2.72051,2573.1,2572.7,0.55]
[1723417166737,2.72062,2573.0,2572.7,0.55]
[1723417170200,2.72077,2572.8,2572.7,0.55]
[1723417170599,2.72069,2572.9,2572.7,0.55]
[1723417171440,2.72077,2572.8,2572.7,0.55]
[1723417172012,2.72077,2572.8,2572.4,0.01195484]
[1723417172211,2.72099,2572.6,2572.4,0.01195484]
[1723417172455,5.44216,2572.5,2572.4,0.01195484]
[1723417173042,2.72108,2572.5,2572.4,0.01195484]
[1723417173838,2.72098,2572.6,2572.4,0.01195484]
[1723417174743,2.72108,2572.5,2572.4,0.01195484]
[1723417175463,2.72098,2572.6,2572.4,0.01195484]
[1723417175823,19.85594703,2572.8,2572.5,2.336]
[1723417176022,19.85594703,2572.8,2572.6,1.05690648]
[1723417176271,2.72057,2573.0,2572.6,0.55]
[1723417176272,22.57651703,2573.0,2572.6,0.55]
[1723417176449,2.72079,2572.8,2572.6,0.55]
[1723417178062,2.72079,2572.8,2572.4,0.01195484]
[1723417178456,2.72104,2572.6,2572.4,0.01195484]
[1723417178633,2.72108,2572.5,2572.4,0.01195484]
[1723417179138,2.72104,2572.6,2572.4,0.01195484]
[1723417179466,2.72108,2572.5,2572.4,0.01195484]
[1723417181263,2.72068,2572.9,2572.4,2.51105484]
[1723417181451,2.72068,2572.9,2572.5,0.55]
[1723417182052,22.57662703,2572.9,2572.5,0.55]
[1723417182555,2.72087,2572.8,2572.5,0.55]
[1723417183968,2.7209,2572.7,2572.4,0.01195484]
[1723417184175,2.72108,2572.5,2572.4,0.01195484]
[1723417184330,5.44187,2572.7,2572.4,0.01195484]
[1723417184736,2.72104,2572.6,2572.4,0.01195484]
[1723417185771,2.72108,2572.5,2572.4,0.01195484]
[1723417185971,5.44216,2572.5,2572.4,0.01195484]
[1723417186934,2.72108,2572.5,2572.4,0.01195484]
[1723417187845,5.44216,2572.5,2572.4,0.01195484]
[1723417188068,25.29810703,2572.5,2572.4,0.01195484]
[1723417188227,27.90707413,2572.5,2572.4,0.01195484]
[1723417189032,25.18599413,2572.5,2572.4,0.01195484]
[1723417189233,22.57702703,2572.5,2572.4,0.01195484]
[1723417189434,25.29810703,2572.5,2572.4,0.01195484]
[1723417189635,19.85594703,2572.5,2572.4,0.01195484]
[1723417189872,19.85594703,2572.5,2572.4,0.56195484]
[1723417190771,27.77380703,2572.5,2572.4,0.01195484]
[1723417190984,30.03149473,2572.5,2572.4,0.01195484]
[1723417191349,33.94257473,2572.5,2572.4,0.01195484]
[1723417193276,31.22149473,2572.5,2572.4,0.01195484]
[1723417193781,33.94257473,2572.5,2572.4,0.01195484]
[1723417194075,32.75257473,2572.5,2572.4,0.01195484]
[1723417196141,35.47365473,2572.5,2572.4,0.01195484]
[1723417196345,38.85762334,2572.5,2572.4,0.01195484]
[1723417196548,41.12630689,2572.5,2572.4,0.01195484]
[1723417196770,38.85762334,2572.5,2572.4,0.01195484]
[1723417196974,38.8576258,2572.5,2572.4,0.01195484]
[1723417197284,41.40517695,2572.5,2572.4,0.01195484]
[1723417197585,39.1365458,2572.5,2572.4,0.01195484]
[1723417197771,41.8576258,2572.5,2572.4,0.01195484]
[1723417199352,44.12623849,2572.5,2572.4,0.01195484]
[1723417199567,41.8576258,2572.5,2572.4,0.01195484]
[1723417200184,2.72187,2571.8,2571.4,2.33762484]
[1723417200385,2.72187,2571.8,2571.5,0.55]
[1723417200570,2.72168,2572.0,2571.5,0.55]
[1723417200771,2.72184,2571.8,2571.5,0.55]
[1723417200978,9.5965,2572.1,2571.5,0.55]
[1723417201218,2.72241,2571.3,2570.7,2.7229]
[1723417201538,2.72241,2571.3,2570.2,0.19179812]
[1723417201539,2.72316,2570.6,2570.2,0.19179812]
[1723417201683,2.72316,2570.6,2570.2,0.1241523]
[1723417201886,2.72234,2571.4,2570.3,0.07781177]
[1723417202093,7.08661384,2571.6,2570.9,2.72268]
[1723417202094,2.72211,2571.6,2570.9,2.72268]
[1723417202296,2.72211,2571.6,2570.8,2.72288]
[1723417202494,2.3265,2571.9,2570.8,2.72281]
[1723417202495,5.44462,2571.4,2570.8,2.72281]
[1723417202697,5.44462,2571.4,2570.5,2.72314]
[1723417202698,2.72268,2571.0,2570.5,2.72314]
[1723417203128,2.3329,2570.9,2570.5,2.72314]
[1723417203326,2.3329,2570.9,2570.2,0.1241523]
[1723417203327,2.72324,2570.5,2570.2,2.5648523]
[1723417203521,2.72312,2570.6,2570.2,2.5648523]
[1723417203706,2.72341,2570.3,2570.2,0.1241523]
[1723417206144,5.44682,2570.3,2570.2,0.1241523]
[1723417206298,2.72341,2570.3,2570.2,0.1241523]
[1723417207013,5.44682,2570.3,2570.2,0.1241523]
[1723417207208,2.72317,2570.6,2570.2,0.1241523]
[1723417207410,2.72327,2570.5,2570.2,0.1241523]
[1723417207615,2.72317,2570.6,2570.2,0.1241523]
[1723417207821,2.72294,2570.8,2570.2,0.65687853]
[1723417208033,7.27,2570.9,2570.4,2.72329]
[1723417208244,19.85594703,2571.0,2570.6,2.4795]
[1723417208401,19.85594703,2571.0,2570.7,0.55]
[1723417208618,2.72218,2571.5,2570.8,2.4483]
[1723417208966,2.72236,2571.3,2570.9,0.55]
[1723417209112,5.44442,2571.5,2570.9,1.449417]
[1723417209456,2.72198,2571.7,2570.9,1.52720664]
[1723417209747,2.72223,2571.5,2571.0,2.4484]
[1723417210048,2.72223,2571.5,2571.1,0.55]
[1723417210254,2.722,2571.7,2571.1,3.844661]
[1723417210606,2.72177,2571.9,2571.1,3.844661]
[1723417210607,2.72205,2571.6,2571.1,3.844661]
[1723417211355,2.3327,2572.0,2571.1,1.122111]
[1723417211515,2.72232,2571.4,2571.1,1.122111]
[1723417211912,2.72246,2571.2,2571.0,2.4484]
[1723417212147,2.72225,2571.4,2570.6,2.3803]
[1723417212447,2.72279,2570.9,2570.6,2.3803]
[1723417213647,2.72279,2570.9,2570.4,3.0]
[1723417213648,2.72288,2570.8,2570.4,3.0]
[1723417213846,2.2558,2571.5,2570.5,0.55]
[1723417213847,2.67299,2570.7,2570.5,0.55]
[1723417214055,2.72331,2570.4,2570.2,0.1241523]
[1723417214846,19.85594703,2570.5,2570.2,0.1241523]
[1723417215152,22.57923703,2570.5,2570.2,0.1241523]
[1723417215477,2.72331,2570.4,2570.2,0.1241523]
[1723417215955,19.85594703,2570.5,2570.2,0.1241523]
[1723417215956,2.72341,2570.3,2570.2,0.1241523]
[1723417216215,5.44682,2570.3,2570.2,0.1241523]
[1723417216707,25.30276703,2570.3,2570.2,0.1241523]
[1723417217272,28.02617703,2570.3,2570.2,0.1241523]
[1723417217507,25.25276703,2570.3,2570.2,0.1241523]
[1723417217712,26.65701687,2570.3,2570.2,0.1241523]
[1723417220172,29.38042687,2570.3,2570.2,0.1241523]
[1723417221512,32.10383687,2570.3,2570.2,0.1241523]
[1723417221718,37.56403687,2570.3,2570.2,0.1241523]
[1723417222215,34.84062687,2570.3,2570.2,0.1241523]
[1723417222710,32.11721687,2570.3,2570.2,0.1241523]
[1723417222914,29.65701687,2570.3,2570.2,0.1241523]
[1723417223278,34.67692687,2570.3,2570.2,0.1241523]
[1723417224779,29.65701687,2570.3,2570.2,0.1241523]
[1723417227199,32.38042687,2570.3,2570.2,0.1241523]
[1723417227412,29.65701687,2570.3,2570.2,0.1241523]
[1723417227620,32.38042687,2570.3,2570.2,0.1241523]
[1723417227821,34.73522687,2570.3,2570.2,0.1241523]
[1723417228599,37.45863687,2570.3,2570.2,0.1241523]
[1723417229154,37.45863687,2570.3,2570.2,2.3e-06]
[1723417231016,34.73522687,2570.3,2570.2,2.3e-06]
[1723417231531,32.38042687,2570.3,2570.2,2.3e-06]
[1723417232807,35.10383687,2570.3,2570.2,2.3e-06]
[1723417233031,32.38042687,2570.3,2570.2,2.3e-06]
[1723417234935,37.38643687,2570.3,2570.2,2.3e-06]
[1723417235609,34.66302687,2570.3,2570.2,2.3e-06]
[1723417236113,37.38643687,2570.3,2570.2,2.3e-06]
[1723417237218,37.38643687,2570.3,2569.1,2.3954]
[1723417237219,2.72458,2569.2,2569.1,2.3954]
[1723417237650,2.7243,2569.5,2569.1,2.3954]
[1723417237821,19.85594703,2569.6,2569.1,2.3954]
[1723417238208,22.58019703,2569.6,2569.1,2.3954]
[1723417238424,22.58019703,2569.6,2569.3,2.3049]
[1723417238748,2.72426,2569.5,2569.4,0.55]
[1723417239547,19.85594703,2569.6,2569.4,0.55]
[1723417239751,22.58010703,2569.6,2569.4,0.55]
[1723417240545,19.85594703,2569.6,2569.4,0.55]
[1723417240752,19.85594703,2569.6,2569.5,2.69789]
[1723417240918,19.85594703,2569.6,2569.5,3.24789]
[1723417241631,2.72337,2570.4,2569.5,3.24789]
[1723417241632,2.72396,2569.8,2569.5,3.24789]
[1723417241808,2.72415,2569.6,2569.5,2.4124]
[1723417242008,2.72409,2569.7,2569.5,2.4124]
[1723417242424,2.7239,2569.9,2569.6,0.24124]
[1723417242629,2.7239,2569.9,2569.7,0.55]
[1723417242828,2.7239,2569.9,2569.8,2.4392]
[1723417244025,5.44782,2569.9,2569.8,2.4392]
[1723417245113,2.72426,2569.5,2569.4,2.3196]
[1723417246025,2.7245,2569.3,2569.2,2.3176]
[1723417246449,2.7245,2569.3,2569.2,2.8676]
[1723417246618,2.72426,2569.5,2569.2,2.8676]
[1723417246824,2.72443,2569.4,2569.2,2.8676]
[1723417247151,2.72447,2569.3,2569.2,2.3176]
[1723417247349,5.44924,2569.2,2568.7,2.4351]
[1723417247561,2.72475,2569.1,2568.8,0.55]
[1723417247725,2.72489,2569.0,2568.7,2.4351]
[1723417248065,5.44978,2569.0,2568.7,2.4351]
[1723417248359,2.72491,2568.9,2568.7,2.4351]
[1723417248732,2.725,2568.8,2568.7,2.4351]
[1723417249042,2.725,2568.8,2567.7,3.71388082]
[1723417249043,2.72532,2568.5,2567.8,2.3338]
[1723417249214,5.45138,2568.2,2567.8,2.3338]
[1723417249416,2.72566,2568.2,2567.8,2.3338]
[1723417249617,2.72575,2568.1,2567.8,2.3338]
[1723417250670,2.72586,2568.0,2567.8,2.3338]
[1723417250884,2.72596,2567.9,2567.8,2.3338]
[1723417251078,2.72596,2567.9,2567.7,0.1241523]
[1723417251569,19.85594703,2568.4,2567.7,0.1241523]
[1723417251570,2.72606,2567.8,2567.7,0.1241523]
[1723417251734,5.45212,2567.8,2567.7,0.1241523]
[1723417251928,22.58197703,2567.9,2567.7,0.1241523]
[1723417252134,19.85594703,2567.9,2567.7,0.1241523]
[1723417253494,22.11412673,2567.9,2567.7,0.1241523]
[1723417253636,25.30806703,2567.8,2567.7,0.1241523]
[1723417254565,22.58200703,2567.8,2567.7,0.1241523]
[1723417255273,27.73896703,2567.8,2567.7,0.1241523]
[1723417255956,25.30806703,2567.8,2567.7,0.1241523]
[1723417256288,12.42648,2568.3,2567.9,2.2605]
[1723417256289,7.27,2568.3,2567.9,2.2605]
[1723417256467,19.85594703,2568.6,2567.9,2.2605]
[1723417256468,27.12594703,2568.6,2568.0,3.27577]
[1723417256631,19.85594703,2568.8,2568.0,0.6278789]
[1723417256834,19.85594703,2568.8,2568.0,0.4]
[1723417256835,2.72555,2568.3,2568.0,0.4]
[1723417257072,2.72555,2568.3,2567.8,2.2605]
[1723417257073,2.72555,2568.3,2567.9,3.0]
[1723417257282,2.72555,2568.3,2567.8,5.2605]
[1723417257485,2.7125947,2568.7,2567.8,5.2605]
[1723417257486,2.72581,2568.1,2567.8,5.2605]
[1723417257631,2.72581,2568.1,2567.8,2.2605]
[1723417257835,2.72596,2567.9,2567.8,2.2605]
[1723417258035,2.72606,2567.8,2567.7,0.1241523]
[1723417258274,5.997322,2567.8,2567.7,0.1241523]
[1723417258577,5.45212,2567.8,2567.7,0.1241523]
[1723417258933,30.42682703,2567.8,2567.7,0.1241523]
[1723417259134,33.42682703,2567.8,2567.7,0.1241523]
[1723417259748,28.30806703,2567.8,2567.7,0.1241523]
[1723417260077,26.75415667,2567.8,2567.7,0.1241523]
[1723417260278,29.48021667,2567.8,2567.7,0.1241523]
[1723417260640,26.75415667,2567.8,2567.7,0.1241523]
[1723417262369,2.72606,2567.8,2567.7,0.1241523]
[1723417262769,5.45212,2567.8,2567.7,0.1241523]
[1723417263333,2.72606,2567.8,2567.7,0.1241523]
[1723417264543,5.45212,2567.8,2567.7,0.1241523]
[1723417265149,7.91542,2567.8,2567.7,0.1241523]
[1723417265455,8.706962,2567.8,2567.7,0.1241523]
[1723417265697,6.243662,2567.8,2567.7,0.1241523]
[1723417266564,8.969722,2567.8,2567.7,0.1241523]
[1723417267697,11.433022,2567.8,2567.7,0.1241523]
[1723417267908,17.159082,2567.8,2567.7,2.3e-06]
[1723417268189,14.433022,2567.8,2567.7,2.3e-06]
[1723417268388,11.706962,2567.8,2567.7,2.3e-06]
[1723417268552,6.243662,2567.8,2567.7,2.3e-06]
[1723417268979,8.969722,2567.8,2567.7,2.3e-06]
[1723417270053,14.259722,2567.8,2567.7,2.3e-06]
[1723417270298,9.243662,2567.8,2567.7,2.3e-06]
[1723417270787,5.45212,2567.8,2567.7,2.3e-06]
[1723417270993,2.72606,2567.8,2567.7,2.3e-06]
[1723417271291,22.58200703,2567.8,2567.7,2.3e-06]
[1723417271492,25.30806703,2567.8,2567.7,2.3e-06]
[1723417272163,28.03412703,2567.8,2567.7,2.3e-06]
[1723417272353,30.83753973,2567.8,2567.7,2.3e-06]
[1723417273174,28.11147973,2567.8,2567.7,2.3e-06]
[1723417273897,33.27983973,2567.8,2567.7,2.3e-06]
[1723417274113,36.27983973,2567.8,2567.7,2.3e-06]
[1723417274803,39.00589973,2567.8,2567.7,2.3e-06]
[1723417275498,39.00589973,2567.8,2566.5,2.4448]
[1723417275499,2.72716,2566.8,2566.5,2.4448]
[1723417276058,5.45396,2567.0,2566.5,2.4448]
[1723417276267,2.72697,2567.0,2566.5,2.4448]
[1723417276687,2.72708,2566.9,2566.5,2.4448]
[1723417276900,2.72713,2566.8,2566.5,2.4448]
[1723417277199,2.72731,2566.7,2566.5,2.4448]
[1723417278373,2.72734,2566.6,2566.5,2.4448]
[1723417278567,2.72731,2566.7,2566.5,2.9948]